[Event "Titled Tuesday Blitz March 01 Early 2022"]
[White "Kouskoutis, Georgios-Alexandros"]
[Black "Kohler, Aran"]
[WhiteFideId "4234049"]
[BlackFideId "1002856"]
[WhiteElo "2130"]
[BlackElo "2262"]
[Result "1-0"]
[Round "08"]
[TimeControl "180+1"]
[Date "2022.03.01"]
[WhiteClock "0:00:07"]
[BlackClock "0:00:13"]

1. c4 {[%clk 0:03:00]}  c6 {[%clk 0:02:57]} 2. g3 {[%clk 0:02:47]}  d5 {[%clk 0:02:57]} 3. Bg2 {[%clk 0:02:41]}  Nf6 {[%clk 0:02:57]} 4. Nf3 {[%clk 0:02:37]}  Bf5 {[%clk 0:02:54]} 5. Qb3 {[%clk 0:02:36]}  Qb6 {[%clk 0:02:51]} 6. d3 {[%clk 0:02:36]}  Qxb3 {[%clk 0:02:50]} 7. axb3 {[%clk 0:02:24]}  e6 {[%clk 0:02:50]} 8. Nh4 {[%clk 0:02:22]}  Bg6 {[%clk 0:02:40]} 9. h3 {[%clk 0:02:15]}  Na6 {[%clk 0:02:39]} 10. O-O {[%clk 0:01:34]}  Nc5 {[%clk 0:02:25]} 11. Nd2 {[%clk 0:01:31]}  dxc4 {[%clk 0:02:12]} 12. bxc4 {[%clk 0:01:21]}  Ncd7 {[%clk 0:02:00]} 13. Ndf3 {[%clk 0:00:42]}  Be7 {[%clk 0:01:52]} 14. Be3 {[%clk 0:00:42]}  a6 {[%clk 0:01:51]} 15. Rfb1 {[%clk 0:00:40]}  O-O {[%clk 0:01:45]} 16. b4 {[%clk 0:00:39]}  Rfc8 {[%clk 0:01:35]} 17. g4 {[%clk 0:00:35]}  Ne8 {[%clk 0:01:30]} 18. Nxg6 {[%clk 0:00:28]}  hxg6 {[%clk 0:01:29]} 19. Nd2 {[%clk 0:00:27]}  e5 {[%clk 0:01:07]} 20. b5 {[%clk 0:00:14]}  axb5 {[%clk 0:01:06]} 21. Rxa8 {[%clk 0:00:15]}  Rxa8 {[%clk 0:01:05]} 22. cxb5 {[%clk 0:00:16]}  cxb5 {[%clk 0:01:04]} 23. Bxb7 {[%clk 0:00:16]}  Rb8 {[%clk 0:01:00]} 24. Bc6 {[%clk 0:00:16]}  Ndf6 {[%clk 0:00:56]} 25. Rxb5 {[%clk 0:00:16]}  Rxb5 {[%clk 0:00:55]} 26. Bxb5 {[%clk 0:00:17]}  Nd6 {[%clk 0:00:55]} 27. Bc6 {[%clk 0:00:16]}  Nfe8 {[%clk 0:00:49]} 28. Bc5 {[%clk 0:00:12]}  Bd8 {[%clk 0:00:47]} 29. Nc4 {[%clk 0:00:07]}  Nxc4 {[%clk 0:00:46]} 30. dxc4 {[%clk 0:00:07]}  Nc7 {[%clk 0:00:35]} 31. Bd6 {[%clk 0:00:05]}  f6 {[%clk 0:00:33]} 32. Bd5+ {[%clk 0:00:05]}  Nxd5 {[%clk 0:00:30]} 33. cxd5 {[%clk 0:00:06]}  Kf7 {[%clk 0:00:31]} 34. e4 {[%clk 0:00:06]}  Bb6 {[%clk 0:00:30]} 35. Kf1 {[%clk 0:00:06]}  f5 {[%clk 0:00:29]} 36. f3 {[%clk 0:00:06]}  Kf6 {[%clk 0:00:25]} 37. Ke2 {[%clk 0:00:05]}  Kg5 {[%clk 0:00:23]} 38. Bxe5 {[%clk 0:00:05]}  fxg4 {[%clk 0:00:21]} 39. hxg4 {[%clk 0:00:05]}  Kh6 {[%clk 0:00:17]} 40. Kd3 {[%clk 0:00:04]}  Kg5 {[%clk 0:00:16]} 41. Bd4 {[%clk 0:00:04]}  Bc7 {[%clk 0:00:16]} 42. e5 {[%clk 0:00:04]}  Kf4 {[%clk 0:00:15]} 43. d6 {[%clk 0:00:05]}  Bd8 {[%clk 0:00:15]} 44. e6 {[%clk 0:00:04]}  Kxf3 {[%clk 0:00:14]} 45. e7 {[%clk 0:00:05]}  Kxg4 {[%clk 0:00:14]} 46. exd8=Q {[%clk 0:00:05]}  Kh5 {[%clk 0:00:13]} 47. Qe7 {[%clk 0:00:06]}  Kh6 {[%clk 0:00:13]} 48. d7 {[%clk 0:00:07]}  Kh7 {[%clk 0:00:13]} 49. d8=Q {[%clk 0:00:07]}  g5 {[%clk 0:00:13]} 50. Qxg7# {[%clk 0:00:07]} 1-0


[Site "https://www.chess.com"]

[Event "Titled Tuesday Blitz March 01 Early 2022"]
[White "Krishnan, Varun"]
[Black "Li, Ben"]
[WhiteFideId "5054508"]
[BlackFideId "2089980"]
[WhiteElo "2600"]
[BlackElo "2267"]
[Result "0-1"]
[Round "08"]
[TimeControl "180+1"]
[Date "2022.03.01"]
[WhiteClock "0:00:05"]
[BlackClock "0:00:19"]

1. e4 {[%clk 0:02:15]}  e5 {[%clk 0:02:54]} 2. Nf3 {[%clk 0:02:09]}  Nf6 {[%clk 0:02:54]} 3. Nxe5 {[%clk 0:02:08]}  d6 {[%clk 0:02:54]} 4. Nf3 {[%clk 0:02:08]}  Nxe4 {[%clk 0:02:54]} 5. Nc3 {[%clk 0:02:08]}  Nxc3 {[%clk 0:02:54]} 6. dxc3 {[%clk 0:02:09]}  Be7 {[%clk 0:02:55]} 7. Bf4 {[%clk 0:02:10]}  O-O {[%clk 0:02:55]} 8. Qd2 {[%clk 0:02:10]}  Nd7 {[%clk 0:02:56]} 9. O-O-O {[%clk 0:02:11]}  Nc5 {[%clk 0:02:56]} 10. h4 {[%clk 0:02:09]}  Ne4 {[%clk 0:02:55]} 11. Qe3 {[%clk 0:02:07]}  Nf6 {[%clk 0:02:56]} 12. Bd3 {[%clk 0:01:59]}  c5 {[%clk 0:02:56]} 13. h5 {[%clk 0:01:56]}  Re8 {[%clk 0:02:37]} 14. Qd2 {[%clk 0:01:47]}  Be6 {[%clk 0:02:31]} 15. c4 {[%clk 0:01:41]}  b5 {[%clk 0:02:31]} 16. cxb5 {[%clk 0:01:39]}  a6 {[%clk 0:02:30]} 17. Ng5 {[%clk 0:01:16]}  Bxa2 {[%clk 0:02:26]} 18. bxa6 {[%clk 0:00:56]}  c4 {[%clk 0:02:21]} 19. Bg6 {[%clk 0:00:42]}  c3 {[%clk 0:01:30]} 20. Qxc3 {[%clk 0:00:39]}  fxg6 {[%clk 0:01:27]} 21. hxg6 {[%clk 0:00:39]}  hxg6 {[%clk 0:01:12]} 22. b3 {[%clk 0:00:19]}  Qd7 {[%clk 0:00:59]} 23. Rh4 {[%clk 0:00:09]}  Rec8 {[%clk 0:00:53]} 24. Rdh1 {[%clk 0:00:09]}  Nh5 {[%clk 0:00:51]} 25. Qd3 {[%clk 0:00:09]}  Bxg5 {[%clk 0:00:35]} 26. Bxg5 {[%clk 0:00:10]}  Qf7 {[%clk 0:00:30]} 27. g4 {[%clk 0:00:05]}  Bxb3 {[%clk 0:00:27]} 28. gxh5 {[%clk 0:00:05]}  Bxc2 {[%clk 0:00:23]} 29. hxg6 {[%clk 0:00:02]}  Bxd3+ {[%clk 0:00:22]} 30. Kd1 {[%clk 0:00:03]}  Qb3+ {[%clk 0:00:20]} 31. Kd2 {[%clk 0:00:03]}  Rc2+ {[%clk 0:00:19]} 32. Ke3 {[%clk 0:00:03]}  Re8+ {[%clk 0:00:19]} 33. Kf4 {[%clk 0:00:04]}  Bxg6 {[%clk 0:00:18]} 34. Rh8+ {[%clk 0:00:04]}  Kf7 {[%clk 0:00:18]} 35. Rxe8 {[%clk 0:00:05]}  Kxe8 {[%clk 0:00:19]} 0-1


[Site "https://www.chess.com"]

[Event "Titled Tuesday Blitz March 01 Early 2022"]
[White "Krylov, Ivan"]
[Black "Ardila, Oscar Humberto"]
[WhiteFideId "24128066"]
[BlackFideId "4404742"]
[WhiteElo "2258"]
[BlackElo "1898"]
[Result "0-1"]
[Round "08"]
[TimeControl "180+1"]
[Date "2022.03.01"]
[WhiteClock "0:00:05"]
[BlackClock "0:00:17"]

1. e4 {[%clk 0:03:00]}  e5 {[%clk 0:02:59]} 2. Nf3 {[%clk 0:03:01]}  Nc6 {[%clk 0:03:00]} 3. Bb5 {[%clk 0:03:01]}  Nf6 {[%clk 0:03:00]} 4. d3 {[%clk 0:02:59]}  Bc5 {[%clk 0:02:56]} 5. h3 {[%clk 0:02:56]}  O-O {[%clk 0:02:55]} 6. c3 {[%clk 0:02:57]}  d6 {[%clk 0:02:55]} 7. Nbd2 {[%clk 0:02:56]}  a6 {[%clk 0:02:53]} 8. Ba4 {[%clk 0:02:56]}  b5 {[%clk 0:02:54]} 9. Bb3 {[%clk 0:02:56]}  Ne7 {[%clk 0:02:48]} 10. Nf1 {[%clk 0:02:55]}  Ng6 {[%clk 0:02:47]} 11. Ng3 {[%clk 0:02:55]}  h6 {[%clk 0:02:46]} 12. O-O {[%clk 0:02:54]}  Be6 {[%clk 0:02:43]} 13. Bc2 {[%clk 0:02:50]}  Bb6 {[%clk 0:02:42]} 14. d4 {[%clk 0:02:48]}  c5 {[%clk 0:02:41]} 15. d5 {[%clk 0:02:35]}  Bd7 {[%clk 0:02:39]} 16. Nh2 {[%clk 0:02:33]}  c4 {[%clk 0:02:21]} 17. Kh1 {[%clk 0:02:33]}  Nf4 {[%clk 0:02:11]} 18. Bxf4 {[%clk 0:02:28]}  exf4 {[%clk 0:02:11]} 19. Ne2 {[%clk 0:02:27]}  g5 {[%clk 0:02:09]} 20. Nd4 {[%clk 0:02:21]}  Qe7 {[%clk 0:02:06]} 21. Qe2 {[%clk 0:02:10]}  Rfe8 {[%clk 0:02:05]} 22. Rae1 {[%clk 0:02:04]}  Bxd4 {[%clk 0:02:01]} 23. cxd4 {[%clk 0:02:05]}  Nxd5 {[%clk 0:01:57]} 24. Qh5 {[%clk 0:01:52]}  Nb4 {[%clk 0:01:56]} 25. Bb1 {[%clk 0:01:47]}  Qf6 {[%clk 0:01:51]} 26. e5 {[%clk 0:01:37]}  dxe5 {[%clk 0:01:51]} 27. dxe5 {[%clk 0:01:35]}  Qg7 {[%clk 0:01:51]} 28. Ng4 {[%clk 0:01:30]}  Bxg4 {[%clk 0:01:50]} 29. Qxg4 {[%clk 0:01:31]}  Rxe5 {[%clk 0:01:47]} 30. Rxe5 {[%clk 0:01:22]}  Qxe5 {[%clk 0:01:46]} 31. Qh5 {[%clk 0:01:20]}  Qf6 {[%clk 0:01:45]} 32. Rd1 {[%clk 0:01:13]}  Re8 {[%clk 0:01:36]} 33. Kh2 {[%clk 0:00:57]}  f3 {[%clk 0:01:34]} 34. Qxf3 {[%clk 0:00:52]}  Qxf3 {[%clk 0:01:34]} 35. gxf3 {[%clk 0:00:53]}  Re2 {[%clk 0:01:33]} 36. Kg3 {[%clk 0:00:47]}  Rxb2 {[%clk 0:01:32]} 37. a3 {[%clk 0:00:45]}  Na2 {[%clk 0:01:23]} 38. Be4 {[%clk 0:00:40]}  Nc3 {[%clk 0:01:22]} 39. Rd8+ {[%clk 0:00:37]}  Kg7 {[%clk 0:01:22]} 40. Bb7 {[%clk 0:00:35]}  a5 {[%clk 0:01:21]} 41. Ba6 {[%clk 0:00:30]}  Rb3 {[%clk 0:01:18]} 42. Rb8 {[%clk 0:00:21]}  h5 {[%clk 0:01:01]} 43. Rb6 {[%clk 0:00:06]}  Ne2+ {[%clk 0:00:50]} 44. Kg2 {[%clk 0:00:06]}  Nd4 {[%clk 0:00:50]} 45. a4 {[%clk 0:00:05]}  bxa4 {[%clk 0:00:44]} 46. Rd6 {[%clk 0:00:05]}  Nf5 {[%clk 0:00:35]} 47. Rd5 {[%clk 0:00:04]}  Nh4+ {[%clk 0:00:35]} 48. Kf1 {[%clk 0:00:03]}  Nxf3 {[%clk 0:00:33]} 49. Bxc4 {[%clk 0:00:02]}  Rb1+ {[%clk 0:00:31]} 50. Ke2 {[%clk 0:00:02]}  Ng1+ {[%clk 0:00:31]} 51. Ke3 {[%clk 0:00:02]}  f6 {[%clk 0:00:29]} 52. Rxa5 {[%clk 0:00:02]}  Rb4 {[%clk 0:00:26]} 53. Ra7+ {[%clk 0:00:02]}  Kf8 {[%clk 0:00:25]} 54. Bd3 {[%clk 0:00:03]}  Nxh3 {[%clk 0:00:23]} 55. Ra8+ {[%clk 0:00:03]}  Ke7 {[%clk 0:00:23]} 56. Ra7+ {[%clk 0:00:04]}  Kd6 {[%clk 0:00:23]} 57. Ra6+ {[%clk 0:00:04]}  Ke5 {[%clk 0:00:20]} 58. Bf1 {[%clk 0:00:05]}  Nf4 {[%clk 0:00:20]} 59. f3 {[%clk 0:00:05]}  Nd5+ {[%clk 0:00:20]} 60. Kf2 {[%clk 0:00:05]}  Rb2+ {[%clk 0:00:19]} 61. Be2 {[%clk 0:00:05]}  Nc3 {[%clk 0:00:19]} 62. Ke3 {[%clk 0:00:04]}  Rxe2+ {[%clk 0:00:18]} 63. Kd3 {[%clk 0:00:05]}  Rf2 {[%clk 0:00:18]} 64. Kxc3 {[%clk 0:00:05]}  Rxf3+ {[%clk 0:00:18]} 65. Kc4 {[%clk 0:00:05]}  Rf4+ {[%clk 0:00:18]} 66. Kc3 {[%clk 0:00:05]}  h4 {[%clk 0:00:18]} 67. Ra5+ {[%clk 0:00:05]}  Ke6 {[%clk 0:00:18]} 68. Kd3 {[%clk 0:00:05]}  h3 {[%clk 0:00:18]} 69. Ra8 {[%clk 0:00:05]}  h2 {[%clk 0:00:17]} 70. Rh8 {[%clk 0:00:05]}  Rh4 {[%clk 0:00:17]} 71. Re8+ {[%clk 0:00:05]}  Kf5 {[%clk 0:00:17]} 0-1


[Site "https://www.chess.com"]

[Event "Titled Tuesday Blitz March 01 Early 2022"]
[White "Krysa, Leandro"]
[Black "Kirillov, Dmitry"]
[WhiteFideId "116807"]
[BlackFideId "34180572"]
[WhiteElo "2490"]
[BlackElo "2076"]
[Result "0-1"]
[Round "08"]
[TimeControl "180+1"]
[Date "2022.03.01"]
[WhiteClock "0:00:01"]
[BlackClock "0:00:18"]

1. e4 {[%clk 0:03:00]}  c5 {[%clk 0:02:59]} 2. Nf3 {[%clk 0:03:00]}  e6 {[%clk 0:02:49]} 3. d4 {[%clk 0:02:59]}  cxd4 {[%clk 0:02:49]} 4. Nxd4 {[%clk 0:03:00]}  Nf6 {[%clk 0:02:48]} 5. Nc3 {[%clk 0:02:59]}  d6 {[%clk 0:02:47]} 6. g4 {[%clk 0:02:58]}  h6 {[%clk 0:02:45]} 7. h4 {[%clk 0:02:56]}  Nc6 {[%clk 0:02:45]} 8. Rg1 {[%clk 0:02:51]}  d5 {[%clk 0:02:46]} 9. exd5 {[%clk 0:02:45]}  Nxd5 {[%clk 0:02:46]} 10. Nxd5 {[%clk 0:02:42]}  exd5 {[%clk 0:02:46]} 11. Be3 {[%clk 0:02:37]}  Be7 {[%clk 0:02:43]} 12. g5 {[%clk 0:02:34]}  hxg5 {[%clk 0:02:38]} 13. hxg5 {[%clk 0:02:33]}  Qa5+ {[%clk 0:02:34]} 14. c3 {[%clk 0:02:31]}  Bd7 {[%clk 0:02:31]} 15. Qb3 {[%clk 0:02:18]}  O-O-O {[%clk 0:02:06]} 16. O-O-O {[%clk 0:02:17]}  Nxd4 {[%clk 0:02:03]} 17. Rxd4 {[%clk 0:02:08]}  Bc6 {[%clk 0:02:03]} 18. Kb1 {[%clk 0:01:57]}  Bc5 {[%clk 0:01:57]} 19. Rf4 {[%clk 0:01:34]}  Bxe3 {[%clk 0:01:56]} 20. fxe3 {[%clk 0:01:35]}  Kb8 {[%clk 0:01:42]} 21. Qb4 {[%clk 0:01:03]}  Qxb4 {[%clk 0:01:32]} 22. cxb4 {[%clk 0:01:03]}  a6 {[%clk 0:01:21]} 23. Rxf7 {[%clk 0:01:00]}  d4 {[%clk 0:01:18]} 24. exd4 {[%clk 0:00:56]}  Rxd4 {[%clk 0:01:14]} 25. Bg2 {[%clk 0:00:47]}  Rg4 {[%clk 0:01:12]} 26. Rxg7 {[%clk 0:00:30]}  Bxg2 {[%clk 0:01:06]} 27. Ka1 {[%clk 0:00:29]}  Be4 {[%clk 0:01:03]} 28. Re1 {[%clk 0:00:27]}  Rh2 {[%clk 0:01:03]} 29. a3 {[%clk 0:00:25]}  Bd5 {[%clk 0:00:57]} 30. Rd7 {[%clk 0:00:12]}  Rxg5 {[%clk 0:00:52]} 31. Rd1 {[%clk 0:00:08]}  Rd2 {[%clk 0:00:49]} 32. Rc1 {[%clk 0:00:04]}  Rgg2 {[%clk 0:00:44]} 33. Re1 {[%clk 0:00:03]}  Bc6 {[%clk 0:00:41]} 34. Rxd2 {[%clk 0:00:03]}  Rxd2 {[%clk 0:00:41]} 35. Rc1 {[%clk 0:00:04]}  Bd5 {[%clk 0:00:41]} 36. Re1 {[%clk 0:00:04]}  Bb3 {[%clk 0:00:40]} 37. Rc1 {[%clk 0:00:04]}  Ka7 {[%clk 0:00:40]} 38. Kb1 {[%clk 0:00:04]}  Kb6 {[%clk 0:00:40]} 39. Re1 {[%clk 0:00:04]}  Rd1+ {[%clk 0:00:36]} 40. Rxd1 {[%clk 0:00:03]}  Bxd1 {[%clk 0:00:37]} 41. Kc1 {[%clk 0:00:04]}  Ba4 {[%clk 0:00:29]} 42. Kd2 {[%clk 0:00:05]}  Kc6 {[%clk 0:00:25]} 43. Kc3 {[%clk 0:00:06]}  Kd5 {[%clk 0:00:25]} 44. Kd3 {[%clk 0:00:06]}  Bb5+ {[%clk 0:00:23]} 45. Kc3 {[%clk 0:00:06]}  Bf1 {[%clk 0:00:23]} 46. Kb3 {[%clk 0:00:02]}  Kd4 {[%clk 0:00:21]} 47. Ka4 {[%clk 0:00:02]}  b6 {[%clk 0:00:19]} 48. Kb3 {[%clk 0:00:01]}  Bc4+ {[%clk 0:00:19]} 49. Kc2 {[%clk 0:00:01]}  Bd3+ {[%clk 0:00:20]} 50. Kd2 {[%clk 0:00:01]}  Bf5 {[%clk 0:00:18]} 51. Kc1 {[%clk 0:00:01]}  Kc4 {[%clk 0:00:18]} 0-1


[Site "https://www.chess.com"]

[Event "Titled Tuesday Blitz March 01 Early 2022"]
[White "Kucuksari, Kaan"]
[Black "Karttunen, Mika"]
[WhiteFideId "6380166"]
[BlackFideId "502081"]
[WhiteElo "2305"]
[BlackElo "2343"]
[Result "0-1"]
[Round "08"]
[TimeControl "180+1"]
[Date "2022.03.01"]
[WhiteClock "0:00:02"]
[BlackClock "0:00:11"]

1. d4 {[%clk 0:02:56]}  Nf6 {[%clk 0:02:59]} 2. c4 {[%clk 0:02:56]}  g6 {[%clk 0:02:59]} 3. g3 {[%clk 0:02:56]}  Bg7 {[%clk 0:02:59]} 4. Bg2 {[%clk 0:02:56]}  O-O {[%clk 0:02:59]} 5. Nf3 {[%clk 0:02:57]}  d6 {[%clk 0:02:59]} 6. O-O {[%clk 0:02:57]}  c6 {[%clk 0:02:59]} 7. Nc3 {[%clk 0:02:57]}  Bf5 {[%clk 0:02:58]} 8. Qb3 {[%clk 0:02:44]}  Qb6 {[%clk 0:02:56]} 9. Qxb6 {[%clk 0:02:41]}  axb6 {[%clk 0:02:56]} 10. b3 {[%clk 0:02:40]}  Ne4 {[%clk 0:02:54]} 11. Bb2 {[%clk 0:02:38]}  Nxc3 {[%clk 0:02:54]} 12. Bxc3 {[%clk 0:02:39]}  Be4 {[%clk 0:02:54]} 13. Rfc1 {[%clk 0:02:32]}  e6 {[%clk 0:02:37]} 14. Bf1 {[%clk 0:02:18]}  Bxf3 {[%clk 0:02:35]} 15. exf3 {[%clk 0:02:19]}  d5 {[%clk 0:02:35]} 16. f4 {[%clk 0:02:18]}  Rd8 {[%clk 0:02:28]} 17. cxd5 {[%clk 0:02:15]}  Rxd5 {[%clk 0:02:26]} 18. Bg2 {[%clk 0:02:14]}  Rd8 {[%clk 0:02:22]} 19. a4 {[%clk 0:02:09]}  Na6 {[%clk 0:02:02]} 20. Rd1 {[%clk 0:02:07]}  Nc7 {[%clk 0:02:03]} 21. Rac1 {[%clk 0:01:55]}  h5 {[%clk 0:01:58]} 22. Kf1 {[%clk 0:01:30]}  Rd7 {[%clk 0:01:58]} 23. Ke2 {[%clk 0:01:30]}  Rad8 {[%clk 0:01:58]} 24. Rd2 {[%clk 0:01:22]}  Nd5 {[%clk 0:01:41]} 25. Bb2 {[%clk 0:01:18]}  Ne7 {[%clk 0:01:36]} 26. Rcd1 {[%clk 0:01:16]}  Nf5 {[%clk 0:01:36]} 27. Be4 {[%clk 0:01:11]}  Nxd4+ {[%clk 0:01:29]} 28. Bxd4 {[%clk 0:01:11]}  Bxd4 {[%clk 0:01:29]} 29. Rd3 {[%clk 0:01:00]}  Kg7 {[%clk 0:01:19]} 30. h4 {[%clk 0:01:00]}  c5 {[%clk 0:00:59]} 31. R3d2 {[%clk 0:00:54]}  Ra8 {[%clk 0:00:59]} 32. Bd3 {[%clk 0:00:52]}  Ra5 {[%clk 0:00:58]} 33. Bb5 {[%clk 0:00:51]}  Re7 {[%clk 0:00:59]} 34. Kf3 {[%clk 0:00:39]}  f6 {[%clk 0:00:57]} 35. Bd3 {[%clk 0:00:25]}  Ra8 {[%clk 0:00:56]} 36. Re2 {[%clk 0:00:23]}  e5 {[%clk 0:00:54]} 37. f5 {[%clk 0:00:22]}  b5 {[%clk 0:00:37]} 38. axb5 {[%clk 0:00:15]}  gxf5 {[%clk 0:00:31]} 39. Bxf5 {[%clk 0:00:14]}  Ra3 {[%clk 0:00:31]} 40. Rd3 {[%clk 0:00:13]}  Ra5 {[%clk 0:00:29]} 41. g4 {[%clk 0:00:05]}  hxg4+ {[%clk 0:00:28]} 42. Kxg4 {[%clk 0:00:06]}  Rxb5 {[%clk 0:00:28]} 43. f4 {[%clk 0:00:05]}  Rb4 {[%clk 0:00:27]} 44. Re4 {[%clk 0:00:05]}  Kh6 {[%clk 0:00:24]} 45. Kf3 {[%clk 0:00:04]}  Rg7 {[%clk 0:00:23]} 46. Bg4 {[%clk 0:00:04]}  Rb6 {[%clk 0:00:20]} 47. f5 {[%clk 0:00:03]}  Ra6 {[%clk 0:00:20]} 48. Re2 {[%clk 0:00:02]}  Ra1 {[%clk 0:00:20]} 49. Rg2 {[%clk 0:00:02]}  Rf1+ {[%clk 0:00:20]} 50. Ke4 {[%clk 0:00:03]}  Rf4+ {[%clk 0:00:20]} 51. Kd5 {[%clk 0:00:04]}  Rfxg4 {[%clk 0:00:21]} 52. Ra2 {[%clk 0:00:04]}  e4 {[%clk 0:00:18]} 53. Rd1 {[%clk 0:00:03]}  e3 {[%clk 0:00:18]} 54. Ra8 {[%clk 0:00:03]}  e2 {[%clk 0:00:17]} 55. Re1 {[%clk 0:00:04]}  Rg2 {[%clk 0:00:17]} 56. Re8 {[%clk 0:00:04]}  Bc3 {[%clk 0:00:15]} 57. R1xe2 {[%clk 0:00:04]}  Rxe2 {[%clk 0:00:15]} 58. Rxe2 {[%clk 0:00:05]}  Bd4 {[%clk 0:00:15]} 59. Re8 {[%clk 0:00:05]}  Kh5 {[%clk 0:00:15]} 60. Rh8+ {[%clk 0:00:05]}  Kg4 {[%clk 0:00:15]} 61. Ke6 {[%clk 0:00:06]}  b5 {[%clk 0:00:15]} 62. h5 {[%clk 0:00:06]}  Kg5 {[%clk 0:00:15]} 63. h6 {[%clk 0:00:07]}  Rb7 {[%clk 0:00:15]} 64. h7 {[%clk 0:00:04]}  Kh6 {[%clk 0:00:15]} 65. Kd5 {[%clk 0:00:04]}  Rxh7 {[%clk 0:00:15]} 66. Re8 {[%clk 0:00:03]}  Rd7+ {[%clk 0:00:14]} 67. Ke6 {[%clk 0:00:04]}  Rc7 {[%clk 0:00:14]} 68. Rg8 {[%clk 0:00:04]}  Kh5 {[%clk 0:00:13]} 69. Rg2 {[%clk 0:00:04]}  Kh4 {[%clk 0:00:13]} 70. Rd2 {[%clk 0:00:04]}  Be5 {[%clk 0:00:12]} 71. Ra2 {[%clk 0:00:04]}  c4 {[%clk 0:00:13]} 72. bxc4 {[%clk 0:00:03]}  bxc4 {[%clk 0:00:14]} 73. Rc2 {[%clk 0:00:03]}  c3 {[%clk 0:00:14]} 74. Kd5 {[%clk 0:00:04]}  Rb7 {[%clk 0:00:14]} 75. Ke4 {[%clk 0:00:05]}  Kg3 {[%clk 0:00:13]} 76. Re2 {[%clk 0:00:03]}  Rb2 {[%clk 0:00:13]} 77. Re3+ {[%clk 0:00:03]}  Kf2 {[%clk 0:00:13]} 78. Rh3 {[%clk 0:00:03]}  c2 {[%clk 0:00:12]} 79. Rf3+ {[%clk 0:00:02]}  Kg2 {[%clk 0:00:11]} 0-1


[Site "https://www.chess.com"]

[Event "Titled Tuesday Blitz March 01 Early 2022"]
[White "Lakshmi C"]
[Black "Martic, Ivan"]
[WhiteFideId "25035347"]
[BlackFideId "929301"]
[WhiteElo "1775"]
[BlackElo "2290"]
[Result "1-0"]
[Round "08"]
[TimeControl "180+1"]
[Date "2022.03.01"]
[WhiteClock "0:02:01"]
[BlackClock "0:01:16"]

1. d4 {[%clk 0:02:54]}  Nf6 {[%clk 0:02:59]} 2. c4 {[%clk 0:02:54]}  e6 {[%clk 0:02:58]} 3. Nc3 {[%clk 0:02:55]}  Bb4 {[%clk 0:02:58]} 4. a3 {[%clk 0:02:54]}  Bxc3+ {[%clk 0:02:58]} 5. bxc3 {[%clk 0:02:54]}  c5 {[%clk 0:02:58]} 6. Nf3 {[%clk 0:02:43]}  O-O {[%clk 0:02:46]} 7. e3 {[%clk 0:02:41]}  Nc6 {[%clk 0:02:44]} 8. Bd3 {[%clk 0:02:40]}  b6 {[%clk 0:02:40]} 9. O-O {[%clk 0:02:38]}  Na5 {[%clk 0:02:39]} 10. e4 {[%clk 0:02:36]}  Ba6 {[%clk 0:02:17]} 11. e5 {[%clk 0:02:36]}  Ne8 {[%clk 0:02:17]} 12. Bxh7+ {[%clk 0:02:25]}  Kxh7 {[%clk 0:02:16]} 13. Ng5+ {[%clk 0:02:25]}  Kg6 {[%clk 0:02:17]} 14. Qd3+ {[%clk 0:02:21]}  f5 {[%clk 0:02:17]} 15. exf6+ {[%clk 0:02:21]}  Kxf6 {[%clk 0:01:16]} 16. Nh7+ {[%clk 0:02:01]} 1-0


[Site "https://www.chess.com"]

[Event "Titled Tuesday Blitz March 01 Early 2022"]
[White "Manolache, Marius"]
[Black "Garriga Cazorla, Pere"]
[WhiteFideId "1201530"]
[BlackFideId "32011601"]
[WhiteElo "2389"]
[BlackElo "2458"]
[Result "1-0"]
[Round "08"]
[TimeControl "180+1"]
[Date "2022.03.01"]
[WhiteClock "0:00:43"]
[BlackClock "0:00:16"]

1. d4 {[%clk 0:03:00]}  Nf6 {[%clk 0:02:57]} 2. c4 {[%clk 0:03:00]}  e6 {[%clk 0:02:57]} 3. Nf3 {[%clk 0:02:59]}  d5 {[%clk 0:02:57]} 4. Nc3 {[%clk 0:02:59]}  dxc4 {[%clk 0:02:57]} 5. e3 {[%clk 0:02:58]}  a6 {[%clk 0:02:55]} 6. Bxc4 {[%clk 0:02:58]}  b5 {[%clk 0:02:55]} 7. Be2 {[%clk 0:02:55]}  Bb7 {[%clk 0:02:55]} 8. O-O {[%clk 0:02:55]}  Nbd7 {[%clk 0:02:56]} 9. a4 {[%clk 0:02:54]}  b4 {[%clk 0:02:56]} 10. Na2 {[%clk 0:02:54]}  c5 {[%clk 0:02:55]} 11. Bd2 {[%clk 0:02:54]}  a5 {[%clk 0:02:48]} 12. Nc1 {[%clk 0:02:52]}  Be7 {[%clk 0:02:44]} 13. Nb3 {[%clk 0:02:52]}  O-O {[%clk 0:02:42]} 14. Bb5 {[%clk 0:02:49]}  Qb6 {[%clk 0:02:26]} 15. Qe2 {[%clk 0:02:35]}  Rfd8 {[%clk 0:02:23]} 16. Rfc1 {[%clk 0:02:33]}  Rac8 {[%clk 0:02:18]} 17. h3 {[%clk 0:02:32]}  h6 {[%clk 0:02:06]} 18. Be1 {[%clk 0:02:31]}  Bd5 {[%clk 0:02:05]} 19. Nxc5 {[%clk 0:02:29]}  Nxc5 {[%clk 0:02:05]} 20. dxc5 {[%clk 0:02:29]}  Bxc5 {[%clk 0:02:04]} 21. Ne5 {[%clk 0:02:23]}  Ba8 {[%clk 0:01:11]} 22. Nc4 {[%clk 0:02:15]}  Qb7 {[%clk 0:01:09]} 23. f3 {[%clk 0:02:15]}  Qa7 {[%clk 0:01:09]} 24. Bf2 {[%clk 0:02:14]}  Nd5 {[%clk 0:01:09]} 25. Rc2 {[%clk 0:01:45]}  Bc6 {[%clk 0:01:02]} 26. Bxc6 {[%clk 0:01:32]}  Rxc6 {[%clk 0:01:02]} 27. Ne5 {[%clk 0:01:32]}  Rc7 {[%clk 0:01:01]} 28. Rac1 {[%clk 0:01:31]}  Rdc8 {[%clk 0:00:43]} 29. Nd3 {[%clk 0:01:14]}  Bxe3 {[%clk 0:00:39]} 30. Bxe3 {[%clk 0:01:07]}  Rxc2 {[%clk 0:00:31]} 31. Bxa7 {[%clk 0:01:06]}  Rxe2 {[%clk 0:00:31]} 32. Rxc8+ {[%clk 0:01:06]}  Kh7 {[%clk 0:00:32]} 33. Rc5 {[%clk 0:00:56]}  Rd2 {[%clk 0:00:32]} 34. Ne5 {[%clk 0:00:56]}  Nf4 {[%clk 0:00:26]} 35. Rxa5 {[%clk 0:00:55]}  Rxg2+ {[%clk 0:00:26]} 36. Kf1 {[%clk 0:00:55]}  Rxb2 {[%clk 0:00:26]} 37. Rb5 {[%clk 0:00:53]}  f6 {[%clk 0:00:24]} 38. Nc6 {[%clk 0:00:48]}  Nd3 {[%clk 0:00:24]} 39. a5 {[%clk 0:00:45]}  e5 {[%clk 0:00:22]} 40. a6 {[%clk 0:00:44]}  Ra2 {[%clk 0:00:20]} 41. Na5 {[%clk 0:00:44]}  Kg6 {[%clk 0:00:17]} 42. Be3 {[%clk 0:00:43]}  b3 {[%clk 0:00:17]} 43. a7 {[%clk 0:00:43]}  b2 {[%clk 0:00:16]} 44. a8=Q {[%clk 0:00:43]} 1-0


[Site "https://www.chess.com"]